Cogmind - Beta 14 @@@ ROGUE MODE // 2024.08.10 @ 14:06:14 Player: Sionnis Result: Destroyed by 1Y-A7Z(R) with Subdweller Beam Cannon Performance ------------- Evolutions (0) 0 Regions Visited (2) 400 Robots Destroyed (30) 150 Value Destroyed (791) 791 Prototype IDs (0) 0 Alien Tech Used (0) 0 Bonus (0) 0 TOTAL SCORE: 1341 Bonus ------- None Cogmind --------- Core Integrity 0/250 Matter 265/300 Energy 95/100 System Corruption 1% Temperature Cool (89) Movement Treading (320) Ox2 Location -10/Subcaves Parts ------- > --- POWER (1) -------- (None) > --- PROPULSION (2) --- Light Treads Light Treads > --- UTILITY (2) ------ Huge Storage Unit Makeshift Light Armor Plating > --- WEAPON (2) ------- Makeshift Shrapnel Gun Battle Cannon > --- INVENTORY (25) --- Light Ion Engine Subdweller Power Source Light Treads Compact Wheel Subdweller Monowheel Subdweller Monowheel Subdweller Monowheel Flight Unit Flight Unit Flight Unit Flight Unit Structural Scanner Subdweller Optics Sensor Array Scrap Shield Makeshift System Shield Subdweller Laser Heavy Assault Rifle Battle Cannon Subdweller Shrapnel Launcher Hammer Peak State ------------ > --- POWER ------------ Subdweller Power Source > --- PROPULSION ------- Light Treads Light Treads > --- UTILITY ---------- Huge Storage Unit Makeshift Light Armor Plating > --- WEAPON ----------- Makeshift Shrapnel Gun Battle Cannon > --- INVENTORY -------- Light Ion Engine Light Treads Light Treads Compact Wheel Subdweller Monowheel Subdweller Monowheel Subdweller Monowheel Flight Unit Flight Unit Flight Unit Flight Unit Flight Unit Structural Scanner Subdweller Optics Sensor Array Subdweller Laser Heavy Assault Rifle Battle Cannon Battle Cannon Subdweller Shrapnel Launcher Hammer [Rating: 18] Favorites ----------- Power Ion Engine Engine Ion Engine Propulsion Light Treads Treads Light Treads Utility Huge Storage Unit Device Structural Scanner Storage Huge Storage Unit Protection Makeshift Light Armor Plating Weapon Heavy Assault Rifle Energy Cannon Subdweller Beam Cannon Ballistic Gun Heavy Assault Rifle Ballistic Cannon Battle Cannon Launcher Grenade Launcher Impact Weapon Hammer Build | -11 -10 -10 ------- Run | Yrd Mat Sub Slots Evolved . | . . . Power . | . . . Propulsion . | . . . Utility . | . . . Weapon . | . . . Parts Attached 24 | 6 7 11 Power 2 | 1 . 1 Engine 2 | 1 . 1 Core . | . . . Reactor . | . . . Propulsion 4 | 2 . 2 Treads 4 | 2 . 2 Leg . | . . . Wheel . | . . . Hover . | . . . Flight . | . . . Utility 5 | 1 3 1 Device 2 | . 2 . Storage 2 | 1 1 . Processor . | . . . Hackware . | . . . Protection 1 | . . 1 Artifact . | . . . Weapon 13 | 2 4 7 Energy Gun . | . . . Energy Cannon 1 | . . 1 Ballistic Gun 7 | 2 3 2 Ballistic Cannon 3 | . . 3 Launcher 1 | . 1 . Special Weapon . | . . . Impact Weapon 1 | . . 1 Slashing Weapon . | . . . Piercing Weapon . | . . . Special Melee Weapon . | . . . Unidentified Prototypes . | . . . Parts Lost 4 | . . 4 Power 1 | . . 1 Propulsion 2 | . . 2 Utility . | . . . Weapon 1 | . . 1 Highest Loss Streak 2 | . . 2 To Critical Strikes 1 | . . 1 Average Slot Usage (%) 97 | . 93 99 Engine 13 | . 14 13 Treads 27 | . 28 27 Device 4 | . 8 1 Storage 14 | . 14 14 Protection 6 | . . 12 Ballistic Gun 23 | . 27 19 Ballistic Cannon 3 | . . 6 Peak Build Rating 18 | 6 10 18 Average Rating 12 | 4 8 15 On Entrance 5 | . 6 10 Naked Turns . | . . . Heaviest Build 100 | 12 92 100 Greatest Support 40 | 40 40 40 Greatest Overweight (x) 2 | . 2 2 Average Overweight (x) 1 | . 1 2 Largest Inventory Capacity 25 | 8 25 25 Average Capacity 23 | 6 21 25 Most Carried 24 | 2 13 24 Average Carried 12 | 1 7 17 Final Capacity 25 | 8 25 25 Final Carried 22 | 2 12 22 Class Distribution -------------------- 74% | Mutant 25% | Derelict-Mutant Dominant Class ---------------- Mutant | -10/Materials Mutant | -10/Subcaves Resources | -11 -10 -10 ----------- Run | Yrd Mat Sub Matter Collected 950 | 242 347 361 Remotely . | . . . Salvage Created 891 | . 559 332 Parts 61 | . 43 18 Haulers Intercepted 1 | . 1 . Recyclers Shooed 1 | . 1 . Parts Field Recycled . | . . . Retrieved Matter . | . . . Parts Self-Destructed 16 | . . 16 Prevented . | . . . Kills | -11 -10 -10 ------- Run | Yrd Mat Sub Combat Hostiles Destroyed 23 | . 14 9 Guns 22 | . 14 8 Cannons 1 | . . 1 Classes Destroyed 10 | . 7 3 Worker 1 | . 1 . Builder 1 | . 1 . Hauler 1 | . 1 . Operator 1 | . 1 . Turret 2 | . . 2 Watcher 1 | . 1 . Swarmer 7 | . 6 1 Grunt 10 | . 8 2 Sentry 1 | . . 1 Subdweller 5 | . . 5 Best Kill Streak 3 | . 3 3 Combat Bots Only 3 | . 3 3 Max Kills in Single Turn 1 | . 1 1 Gunslinging . | . . . Exploded . | . . . Melee . | . . . Uniques/NPCs Destroyed . | . . . Combat | -11 -10 -10 -------- Run | Yrd Mat Sub Hostile Shots Fired 139 | . 44 95 Missed 50 | . 14 36 Damage Taken 1172 | . 363 809 Core 261 | . 59 202 Absorbed by Shields . | . . . Core Remaining (%) 100 | 100 . . Volleys Fired 98 | . 54 44 Largest 2 | . 2 2 Hottest 103 | . 46 103 Shots Fired 189 | . 108 81 Gun 157 | . 107 50 Cannon 31 | . . 31 Launcher 1 | . 1 . Special . | . . . Kinetic 173 | . 107 66 Thermal 15 | . . 15 Explosive 1 | . 1 . Electromagnetic . | . . . Robot Hit Streak 16 | . 11 16 Robot Miss Streak 5 | . 5 4 Penetration Max . | . . . Secondary Targets 1 | . 1 . Max Gunslinging Chain 1 | . 1 . Shots Hit Robots 121 | . 68 53 Core Hits 49 | . 29 20 Critical Kills . | . . . Critical Parts Destroyed . | . . . Critical Strikes . | . . . Melee Attacks 2 | . . 2 Impact 2 | . . 2 Slashing . | . . . Piercing . | . . . Sneak Attacks . | . . . Combat Hostiles . | . . . Follow-up Attacks . | . . . Damage Inflicted 1982 | . 967 1015 Guns 1576 | . 920 656 Cannons 359 | . . 359 Explosions 27 | . 27 . Melee . | . . . Ramming 20 | . 20 . Kinetic 1692 | . 920 772 Thermal 243 | . . 243 Explosive 27 | . 27 . Electromagnetic . | . . . Impact . | . . . Slashing . | . . . Piercing . | . . . Highest Corruption 1 | . 1 1 Average Corruption 1 | . 1 1 Corruption Purged . | . . . Corruption Blocked . | . . . Effects 27 | . 10 17 Message Errors 6 | . 1 5 Matter Fused 8 | . 3 5 Heat Flow Errors 2 | . 1 1 Energy Discharges 4 | . 2 2 Data Loss (minor) 1 | . 1 . Data Loss (major) 4 | . 1 3 Misfires 1 | . 1 . Weapon Failures 1 | . . 1 Overload Shots . | . . . Overflow Damage . | . . . Projectiles . | . . . Explosions . | . . . Melee . | . . . Knockbacks 4 | . 1 3 Impact 1 | . 1 . Kinetic 3 | . . 3 Secondary . | . . . Self-Inflicted Damage . | . . . Shots . | . . . Rammed 2 | . 2 . Targets Rammed 2 | . 2 . Kicked . | . . . Crushed . | . . . Highest Temperature 274 | . 274 270 Average Temperature 77 | . 91 69 Received Heat Transfer 709 | . 150 559 Siege Activations . | . . . Robots Corrupted . | . . . Combat Hostiles . | . . . Parts Fried . | . . . Impact Corruptions . | . . . Robots Melted . | . . . Combat Hostiles . | . . . Parts Melted . | . . . Heat Transferred 333 | . . 333 Parts Sabotaged . | . . . Parts Stolen . | . . . Parts Stripped . | . . . Power Chain Reactions . | . . . Alert | -11 -10 -10 ------- Run | Yrd Mat Sub Peak Influence 260 | . 260 . Initial . | . . . Average 76 | . 79 . Maximum Alert Level 1 | . 1 . Low Security (%) 97 | 100 97 . Level 1 2 | . 2 . Level 2 . | . . . Level 3 . | . . . Level 4 . | . . . Level 5 . | . . . High Security . | . . . Max Security . | . . . Squads Dispatched 3 | . 3 . Investigation 2 | . 2 . Extermination . | . . . Reinforcement 1 | . 1 . Assault . | . . . Garrison . | . . . Intercept . | . . . Searches Triggered . | . . . Construction Impeded . | . . . Haulers Reinforced . | . . . Active Scanning Responses . | . . . Cargo Convoy Interrupts . | . . . Stealth | -11 -10 -10 --------- Run | Yrd Mat Sub Distress Signals 1 | . 1 . Communications Jammed . | . . . Distress Signals . | . . . Times Spotted 37 | . 23 14 Peak Tracking Total 5 | . 5 4 Tactical Retreats 3 | . 1 2 Traps | -11 -10 -10 ------- Run | Yrd Mat Sub Traps Triggered 2 | . 2 . Indirectly . | . . . Trap Hack Attempts . | . . . Triggered . | . . . Disarmed . | . . . Reprogrammed . | . . . Reused . | . . . Traps Extracted . | . . . Installed . | . . . Triggered . | . . . Machines | -11 -10 -10 ---------- Run | Yrd Mat Sub Machines Disabled 3 | . 1 2 Max in Single Turn 1 | . 1 1 Machines Repaired . | . . . Machines Dismantled . | . . . Machines Sabotaged . | . . . Overloaded Fab Kills . | . . . Hacking | -11 -10 -10 --------- Run | Yrd Mat Sub Machines Accessed 6 | . 6 . Terminals 6 | . 6 . Fabricators . | . . . Repair Stations . | . . . Recycling Units . | . . . Scanalyzers . | . . . Garrison Access . | . . . Total Hacks 18 | . 18 . Successful 9 | . 9 . Failed 9 | . 9 . Catastrophic . | . . . Database Lockouts . | . . . Manual 18 | . 18 . Terminals 18 | . 18 . Fabricators . | . . . Repair Stations . | . . . Recycling Units . | . . . Scanalyzers . | . . . Garrison Access . | . . . Terminal Hacks 2 | . 2 . Robot Analysis 2 | . 2 . Fabricator Hacks . | . . . Repair Station Hacks . | . . . Recycling Unit Hacks . | . . . Scanalyzer . | . . . Garrison Access Hacks . | . . . Unauthorized Hacks 7 | . 7 . Terminals 7 | . 7 . Botnet 2 | . 2 . Skim 5 | . 5 . Fabricators . | . . . Repair Stations . | . . . Recycling Units . | . . . Scanalyzers . | . . . Garrison Access . | . . . Data Cores Recovered . | . . . Used . | . . . Hacking Detections 5 | . 5 . Full Trace Events 2 | . 2 . Feedback Events 1 | . 1 . Corruption 1 | . 1 . Feedback Blocked . | . . . Robot Schematics Acquired . | . . . Robots Built . | . . . Authchips . | . . . Time . | . . . Total Robot Build Rating . | . . . Part Schematics Acquired . | . . . Parts Built . | . . . Authchips . | . . . Time . | . . . Total Part Build Rating . | . . . Parts Repaired . | . . . Time . | . . . Parts Recycled . | . . . Recycled Matter . | . . . Retrieved Matter . | . . . Retrieved Components . | . . . Parts Scanalyzed . | . . . Part Schematics Acquired . | . . . Parts Damaged . | . . . Bothacking | -11 -10 -10 ------------ Run | Yrd Mat Sub Used RIF Installer . | . . . Robots Hacked . | . . . Non-combat . | . . . Combat . | . . . Robot Hacks Applied . | . . . Relay Couplers Released . | . . . Fabnet Peak Effective % . | . . . Robots Rewired . | . . . Allies Hacked . | . . . Hacks Repelled . | . . . Allies | -11 -10 -10 -------- Run | Yrd Mat Sub Total Allies . | . . . Largest Group . | . . . Highest-Rated Group . | . . . Highest-Rated Ally . | . . . Total Orders . | . . . Ally Attacks . | . . . Total Damage . | . . . Kills . | . . . Allies Corrupted . | . . . Allies Melted . | . . . Intel | -11 -10 -10 ------- Run | Yrd Mat Sub Robot Analysis Total 2 | . 2 . Derelict Logs Recovered 1 | . . 1 Drone Launches . | . . . Drone Recoveries . | . . . Exploration | -11 -10 -10 ------------- Run | Yrd Mat Sub Turns Passed 4016 | 64 1826 2126 Spaces Moved 1225 | 37 587 601 Core 5 | 5 . . Treads 1220 | 32 587 601 Legs . | . . . Wheels . | . . . Hover . | . . . Flight . | . . . Fastest Speed 50 | 50 160 320 Average Speed 293 | 145 274 320 Slowest Speed 320 | 160 320 320 Overloaded Moves . | . . . Propulsion Burnouts . | . . . Robots Hopped . | . . . Cave-ins Triggered . | . . . Exploration Rate (%) 46 | 4 97 37 Regions Visited 2 Branch Regions 1 Pre-discovered Areas . | . . . Known Exits Taken . | . . . Unknown Exits Taken 2 | 1 1 . Scrap Searched 9 | . . 9 Spaces Dug 10 | . 10 . Terrain Destroyed 11 | . 10 1 Melee . | . . . Projectile 1 | . . 1 AOE 10 | . 10 . Terrain Rammed . | . . . Walls Destroyed . | . . . Machines Disabled . | . . . Actions | -11 -10 -10 --------- Run | Yrd Mat Sub Total 1462 | 44 699 719 Wait 66 | . 33 33 Move 1223 | 36 586 601 Hop . | . . . Pick Up 30 | 2 12 16 Fast Attach 12 | 6 1 5 Attach 6 | . 2 4 Detach 3 | . 1 2 Swap 6 | . 4 2 Drop 14 | . 4 10 Fire 98 | . 54 44 Melee 2 | . . 2 Ram . | . . . Kick . | . . . Crush 2 | . 2 . Escape Stasis . | . . . Rewire . | . . . Trap . | . . . Miscellaneous . | . . . Route ------- -11/Scrapyard -10/Materials (discovered 5 exits: [*Mat x3] / [*Min] / [*Sub]) -10/Subcaves (discovered 2 exits: [*Mat] / [*Rec]) History --------- Turn | Location | Event 5 | -11/Scrapyard | Discovered new exit (range 14) 65 | -11/Scrapyard | Entered Materials 300 | -10/Materials | Build established: Mutant 547 | -10/Materials | Discovered new exit (range 10) 928 | -10/Materials | Discovered new exit (range 10) 1245 | -10/Materials | Discovered new exit (range 16) 1620 | -10/Materials | Discovered new exit (range 11) 1869 | -10/Materials | Discovered new exit (range 8) 1891 | -10/Materials | Entered Subcaves 2256 | -10/Subcaves | Core integrity fell below 50% 2762 | -10/Subcaves | Learned Materials garrison access intel 3192 | -10/Subcaves | A swath of the cavern ceiling suddenly collapsed 3299 | -10/Subcaves | Build established: Derelict-Mutant 3529 | -10/Subcaves | Discovered new exit (range 9) 3540 | -10/Subcaves | Shifting Twisted Machinery released Battle Cannon 3681 | -10/Subcaves | Shifting Twisted Machinery released Sub. Power Source 3684 | -10/Subcaves | Shifting Twisted Machinery released Scrap Shield 3685 | -10/Subcaves | Shifting Twisted Machinery released Mak. System Shield 3790 | -10/Subcaves | Discovered new exit (range 11) 4016 | -10/Subcaves | Core integrity fell below 20% 4017 | -10/Subcaves | Destroyed by 1Y-A7Z(R) with Subdweller Beam Cannon Last Messages --------------- Lgt. Treads destroyed. Subatomizers dissect the Sub. Machine Gun. Autobeam Turret destroyed. EXIT=FOUND Subatomizers dissect the Sub. Machine Gun. System corrupted: Matter fused (-10). Destroyed Autobeam. Autobeam Turret destroyed. Acquired 31 matter. Acquired 46 matter. Acquired 10 matter. Acquired 5 matter. Acquired 3 matter. Acquired 7 matter. Critical hit (Meltdown: +280). Broken Sub. Power Source destroyed. System corrupted: Battle Cannon jammed. Critical hit (Destroy). Battle Cannon destroyed. H3-M2A(R) destroyed. Map ----- +----------------------------------------------------+ | ?????????????????????????????????????????????????? | | ?????????????????????????????????????????????????? | | ?????????????????????????????????????????????????? | | #????????????????????????????????????????????????? | | #????????????????????????????????????????????????? | | #????????????????????????????????????????????????? | | ?????????????????????????????????????????????????? | | "??????????????????? ??????????????????????????? | | "??????????????????? #????????????????????????? | | "?????????????????## #????????????????????????? | | ?????????????????## #????????????????????????? | | ????????????????## ????????????????????????? | | ???????####???? # ????????????????????????? | | ##???? ## ?? ?????????????????????????? | | #### ?? ?????????? ??????????????? | | ??? ????????? ????????????? | | ###?????????# ?????????? ????????????? | | ########??????## #????????? ????????????? | | #" """#????### #???????? ?????????????? | | # "#???## #??????? ???????????????? | | %# #???# #?####? #????????????????? | | & ##???# RR### # ##???????????????? | | # <#????# ""????????????????? | | "####### # #???????????????????? | | ### #?# # ##??????????????????? | | ??# ### ## ### @% #??????????????????? | | ??#"% " ## ####?##R# %##??????????????????? | | ######"#### ##????## #???????????????????? | | # ##?????# #???????????????????? | | ## ## #?????? #???????????????????? | | ?# ## #### #??????? #???????????????????? | | ?# #### ##??# ##???????? ???????????????????? | | ?# #??######???# ##?????????? ??????????????????? | | ?###???????????# ##??????????? ?????????????????? | | ???????????????###????????????? #????????????????? | | ????????????????????????????????#????????????????? | | ?????????????????????????????????????????????????? | | ?????????????????????????????????????????????????? | | ?????????????????????????????????????????????????? | | ?????????????????????????????????????????????????? | | ?????????????????????????????????????????????????? | | ?????????????????????????????????????????????????? | | ?????????????????????????????????????????????????? | | ?????????????????????????????????????????????????? | | ?????????????????????????????????????????????????? | | ?????????????????????????????????????????????????? | | ?????????????????????????????????????????????????? | | ?????????????????????????????????????????????????? | | ?????????????????????????????????????????????????? | | ?????????????????????????????????????????????????? | +----------------------------------------------------+ Best States ------------- Heat Dissipation 25 Energy Generation 15 Energy Capacity 250 Matter Stores 300 Matter Capacity 300 Sight Range 16 Robot Scan Range 14 Terrain Scan Density 10 Armor Coverage 100 Evasion (%) 40 Recoil Reduction 2 Item Schematics ----------------- None Robot Schematics ------------------ None Fabricated ------------ Nothing Alien Tech Used ----------------- None Achievements -------------- None Challenges ------------ None Game ------ Seed ScatterFortressFirepult Manual? 0 Play Time 00:19:28 Cumulative 555.2 hours Start 2024.08.10 @ 13:53:06 End 2024.08.10 @ 14:06:14 Sessions 1 Manual Loads 0 Difficulty Rogue Special Mode None Game No. 306 Rogue 306 Adventurer 0 Explorer 0 Win Type - Total 36 Types 22/2/4/3/1/1/1/1/1 Lore% 95 Gallery% 97 Achievement% 98 Wizard Run 0 Options --------- Layout 1 ASCII 0 Keyboard 0 Movement Numpad Keybinds 0 Fullscreen 1 Font 24/Smallcaps Map View 50x35 Zoom Use 0% Tactical HUD 1 Map Filters NONE Filters NONE Steam 1 RUN: 08f47a11-d854-4c0b-b655-29af40539899